fUST/lending_fUST_20260404
["ID","MTS","AMOUNT","RATE_DAILY","PERIOD"]
[419695062,1775304647078,-575.75352883,0.00016027,2]
[419695063,1775304647088,-1023.56182903,0.00016027,2]
[419695064,1775304647097,-650.72517418,0.00016027,2]
[419695065,1775304798159,-151.0,0.00013233,14]
[419695066,1775304799590,-151.0,0.00013233,14]
[419695067,1775304828808,-59.57371125,0.00013233,14]
[419695068,1775305150255,500.0,0.0001976,120]
[419695069,1775305285555,500.0,0.00034854,120]
[419695070,1775305285778,500.0,0.00034854,120]
[419695071,1775305285996,500.0,0.00034854,120]
[419695072,1775305286213,500.0,0.00034854,120]
[419695073,1775305286441,500.0,0.00034854,120]
[419695074,1775305286655,500.0,0.00034854,120]
[419695075,1775305286905,500.0,0.00034854,120]
[419695076,1775305287144,328.61776687,0.00034854,120]
[419695077,1775305418325,1023.66,0.00032876,120]
[419695078,1775305510284,525.37919776,0.0001976,120]
[419695084,1775305831708,-166.0,0.00012922,2]
[419695085,1775305831717,-300.0,0.00012922,2]
[419695086,1775305831727,-300.0,0.00012922,2]
[419695087,1775305831736,-242.0,0.00012922,2]
[419695088,1775305831745,-603.0,0.00012922,2]
[419695089,1775305831755,-418.5,0.00012923,2]
[419695092,1775305838005,-4581.5,0.00012923,2]
[419695093,1775305838015,-946.99086832,0.00013054,2]
[419695094,1775305838024,-209.45506384,0.00013593,2]
[419695095,1775305838034,-1000.0,0.00013699,2]
[419695096,1775305838045,-420.0,0.00014172,2]
[419695097,1775305838055,-263.91671703,0.00015784,2]
[419695098,1775305838064,-301.61910517,0.00015784,2]
[419695099,1775305838074,-470.80857198,0.00015784,2]
[419695100,1775305838083,-527.3283334,0.0001735,2]
[419695101,1775305838093,-3073.53898366,0.00018,2]
[419695102,1775305838104,-657.03711554,0.00019178,2]
[419695103,1775305838113,-1000.0,0.00019374,2]
[419695104,1775305838122,-500.0,0.0001976,2]
[419695105,1775305838132,-151.0,0.00019761,2]
[419695106,1775305838141,-5000.0,0.00019761,2]
[419695107,1775305838150,-3522.128707,0.00019761,2]
[419695108,1775305838161,-154.4258518,0.00019877,2]
[419695109,1775305838170,-3105.5236968,0.00019877,2]
[419695110,1775305838179,-3078.3257592,0.00019953,2]
[419695111,1775305838188,-600.0,0.00020155,2]
[419695112,1775305838198,-1150.42529763,0.00020251,2]
[419695113,1775305838206,-200.05421962,0.00020525,2]
[419695114,1775305838215,-151.5,0.00020525,2]
[419695115,1775305838225,-151.5,0.00020525,2]
[419695116,1775305838234,-201.65797236,0.00020525,2]
[419695117,1775305838243,-500.0,0.00020617,2]
[419695118,1775305838252,-151.5,0.00020617,2]
[419695119,1775305838261,-219.86207707,0.00020617,2]
[419695120,1775305838271,-500.0,0.00020617,2]
[419695121,1775305838282,-500.0,0.00020617,2]
[419695122,1775305838294,-500.0,0.00020617,2]
[419695123,1775305838303,-500.0,0.00020617,2]
[419695124,1775305838315,-500.0,0.00020617,2]
[419695125,1775305838326,-500.0,0.00020617,2]
[419695126,1775305838336,-500.0,0.00020617,2]
[419695127,1775305838345,-500.0,0.00020617,2]
[419695128,1775305838354,-500.0,0.00020617,2]
[419695129,1775305838365,-500.0,0.00020617,2]
[419695130,1775305838375,-500.0,0.00020617,2]
[419695131,1775305838384,-500.0,0.00020617,2]
[419695132,1775305838394,-500.0,0.00020617,2]
[419695133,1775305838404,-604.16227893,0.00020617,2]
[419695134,1775305838414,-500.0,0.00020617,2]
[419695135,1775305838423,-500.0,0.00020617,2]
[419695136,1775305838434,-500.0,0.00020617,2]
[419695137,1775305838443,-211.63576522,0.00020617,2]
[419695138,1775305838453,-426.979,0.00020665,2]
[419695139,1775305838462,-187.602,0.00020665,2]
[419695140,1775305838471,-1165.9021362,0.00020666,2]
[419695141,1775305838480,-553.06532548,0.00020673,2]
[419695142,1775305838491,-500.0,0.00020673,2]
[419695143,1775305838500,-566.06,0.00020689,3]
[419695144,1775305838510,-283.03,0.00020689,3]
[419695145,1775305838519,-849.13,0.00020689,3]
[419695146,1775305838528,-500.0,0.00020698,2]
[419695147,1775305838538,-500.0,0.00020698,2]
[419695148,1775305838547,-500.0,0.00020698,2]
[419695149,1775305838556,-559.72595897,0.00020698,2]
[419695150,1775305838565,-404.30551656,0.00020698,2]
[419695151,1775305838576,-500.0,0.00020698,2]
[419695152,1775305838585,-500.0,0.00020698,2]
[419695153,1775305838594,-500.0,0.00020698,2]
[419695154,1775305838603,-432.57866238,0.00020698,2]
[419695155,1775305838613,-500.0,0.00020698,2]
[419695156,1775305838622,-500.0,0.00020698,2]
[419695157,1775305838631,-500.0,0.00020698,2]
[419695158,1775305838640,-1588747.59418525,0.00020699,2]
[419695159,1775305838649,-200.0,0.00020798,2]
[419695160,1775305838659,-500.0,0.00020799,2]
[419695161,1775305838668,-500.0,0.00020799,2]
[419695162,1775305838678,-500.0,0.00020799,2]
[419695163,1775305838690,-500.0,0.00020799,2]
[419695164,1775305838700,-500.0,0.00020799,2]
[419695165,1775305838709,-151.5,0.00020799,2]
[419695166,1775305838718,-500.0,0.00020799,2]
[419695167,1775305838727,-500.0,0.00020799,2]
[419695168,1775305838736,-151.5,0.00020799,2]
[419695169,1775305838747,-500.0,0.00020799,2]
[419695170,1775305838757,-500.0,0.00020799,2]
[419695171,1775305838767,-151.5,0.00020799,2]
[419695172,1775305838776,-500.0,0.00020799,2]
[419695173,1775305838785,-500.0,0.00020799,2]
[419695174,1775305838795,-260.11910553,0.00020799,2]
[419695175,1775305838803,-429.23835317,0.00020799,2]
[419695176,1775305838813,-500.0,0.00020799,2]
[419695177,1775305838822,-500.0,0.00020799,2]
[419695178,1775305838831,-267.00855672,0.00020799,2]
[419695179,1775305838841,-500.0,0.00020799,2]
[419695180,1775305838850,-500.0,0.00020799,2]
[419695181,1775305838861,-500.0,0.00020799,2]
[419695182,1775305838871,-154.19255123,0.00020799,2]
[419695183,1775305838880,-500.0,0.00020799,2]
[419695184,1775305838889,-500.0,0.00020799,2]
[419695185,1775305838898,-151.5,0.00020799,2]
[419695186,1775305838908,-503.56131271,0.00020799,2]
[419695187,1775305838917,-151.5,0.00020799,2]
[419695188,1775305838926,-194.72018615,0.00020799,2]
[419695189,1775305838936,-202.15029944,0.00020799,2]
[419695190,1775305838946,-500.0,0.00020799,2]
[419695191,1775305838955,-500.0,0.00020799,2]
[419695192,1775305838965,-500.0,0.00020799,2]
[419695193,1775305838974,-500.0,0.00020799,2]
[419695194,1775305838985,-500.0,0.00020799,2]
[419695195,1775305838994,-500.0,0.00020799,2]
[419695196,1775305839004,-277.08201974,0.00020799,2]
[419695197,1775305839015,-4860.86070321,0.00020865,2]
[419695198,1775305839024,-500.0,0.00020891,2]
[419695199,1775305839033,-500.0,0.00020891,2]
[419695200,1775305839042,-401.13154866,0.00020891,2]
[419695201,1775305839052,-151.5,0.00020891,2]
[419695202,1775305839062,-151.5,0.00020891,2]
[419695203,1775305839071,-290.65943425,0.00020891,2]
[419695204,1775305839081,-500.0,0.00020903,2]
[419695205,1775305839090,-1313.15035717,0.0002094,2]
[419695206,1775305839099,-180.8462068,0.00020952,2]
[419695207,1775305839108,-151.0,0.00020952,2]
[419695208,1775305839117,-151.0,0.00020952,2]
[419695209,1775305839126,-151.0,0.00020952,2]
[419695210,1775305839136,-151.0,0.00020952,2]
[419695211,1775305839145,-151.0,0.00020952,2]
[419695212,1775305839154,-151.0,0.00020952,2]
[419695213,1775305839164,-151.0,0.00020952,2]
[419695214,1775305839174,-151.0,0.00020952,2]
[419695215,1775305839183,-151.18324943,0.00020952,2]
[419695216,1775305839192,-151.0,0.00020952,2]
[419695217,1775305839201,-151.0,0.00020952,2]
[419695218,1775305839211,-151.0,0.00020952,2]
[419695219,1775305839220,-151.0,0.00020952,2]
[419695220,1775305839229,-151.0,0.00020952,2]
[419695221,1775305839238,-151.0,0.00020952,2]
[419695222,1775305839247,-151.0,0.00020952,2]
[419695223,1775305839256,-151.0,0.00020952,2]
[419695224,1775305839266,-151.0,0.00020952,2]
[419695225,1775305839276,-151.0,0.00020952,2]
[419695226,1775305839285,-151.0,0.00020952,2]
[419695227,1775305839294,-174.02065082,0.00020952,2]
[419695228,1775305839304,-232554.93344321,0.00020965,2]
[419695229,1775305839313,-1313.15035717,0.00020965,2]
[419695230,1775305839322,-500.0,0.00021,2]
[419695231,1775305839331,-648.03,0.00021065,2]
[419695232,1775305839341,-648.03,0.00021065,2]
[419695233,1775305839351,-648.03,0.00021065,2]
[419695234,1775305839361,-648.03,0.00021065,2]
[419695235,1775305839370,-998.25,0.00021065,2]
[419695236,1775305839379,-165.34950476,0.00021073,2]
[419695237,1775305839389,-266.5974242,0.00021221,2]
[419695238,1775305839398,-1150.42529757,0.00021265,2]
[419695239,1775305839408,-500.0,0.00021431,2]
[419695240,1775305839417,-500.67170058,0.00021438,2]
[419695241,1775305839426,-164.978727,0.00021735,2]
[419695242,1775305839435,-200.0,0.00021917,2]
[419695243,1775305839445,-151.0,0.00021918,2]
[419695244,1775305839454,-151.0,0.00021918,2]
[419695245,1775305839463,-151.0,0.00021918,2]
[419695246,1775305839473,-151.0,0.00021918,2]
[419695247,1775305839483,-151.0,0.00021918,2]
[419695248,1775305839494,-151.0,0.00021918,2]
[419695249,1775305839505,-151.0,0.00021918,2]
[419695250,1775305839515,-151.0,0.00021918,2]
[419695251,1775305839524,-151.0,0.00021918,2]
[419695252,1775305839533,-151.0,0.00021918,2]
[419695253,1775305839543,-151.0,0.00021918,2]
[419695254,1775305839554,-151.0,0.00021918,2]
[419695255,1775305839563,-151.0,0.00021918,2]
[419695256,1775305839572,-151.0,0.00021918,2]
[419695257,1775305839582,-151.0,0.00021918,2]
[419695258,1775305839593,-151.0,0.00021918,2]
[419695259,1775305839602,-151.0,0.00021918,2]
[419695260,1775305839611,-151.0,0.00021918,2]
[419695261,1775305839623,-151.0,0.00021918,2]
[419695262,1775305839632,-151.0,0.00021918,2]
[419695263,1775305839642,-171.918614,0.00021918,2]
[419695264,1775305839651,-151.0,0.00021918,2]
[419695265,1775305839660,-151.0,0.00021918,2]
[419695266,1775305839670,-360.0,0.00021918,2]
[419695267,1775305839679,-360.0,0.00021918,2]
[419695268,1775305839689,-360.0,0.00021918,2]
[419695269,1775305839698,-360.0,0.00021918,2]
[419695270,1775305839707,-360.0,0.00021918,2]
[419695271,1775305839716,-360.0,0.00021918,2]
[419695272,1775305839725,-360.0,0.00021918,2]
[419695273,1775305839734,-360.0,0.00021918,2]
[419695274,1775305839743,-360.0,0.00021918,2]
[419695275,1775305839753,-360.0,0.00021918,2]
[419695277,1775305839762,-325.04030726,0.00021918,2]
[419695291,1775305839870,-34.95969274,0.00021918,2]
[419695292,1775305839879,-360.0,0.00021918,2]
[419695294,1775305839889,-360.0,0.00021918,2]
[419695296,1775305839898,-360.0,0.00021918,2]
[419695298,1775305839908,-164.8863792,0.00021918,2]
[419695590,1775305843039,-195.1136208,0.00021918,2]
[419695592,1775305843050,-360.0,0.00021918,2]
[419695594,1775305843060,-360.0,0.00021918,2]
[419695596,1775305843069,-360.0,0.00021918,2]
[419695598,1775305843079,-360.0,0.00021918,2]
[419695599,1775305843088,-360.0,0.00021918,2]
[419695601,1775305843098,-203.838168,0.00021918,2]
[419695602,1775305843108,-300.72230613,0.00021973,2]
[419695603,1775305843118,-500.0,0.00021973,2]
[419695604,1775305843127,-325.96578333,0.00021973,2]
[419695605,1775305843309,-175.60896698,0.00021973,2]
[419695606,1775305843321,-150.25027601,0.00021973,2]
[419695607,1775305843331,-500.0,0.00021999,2]
[419695608,1775305843342,-500.0,0.00021999,2]
[419695609,1775305843352,-500.0,0.00021999,2]
[419695610,1775305843361,-500.0,0.00021999,2]
[419695611,1775305843371,-500.0,0.00021999,2]
[419695612,1775305843381,-500.0,0.00021999,2]
[419695613,1775305843390,-500.0,0.00021999,2]
[419695614,1775305843400,-500.0,0.00021999,2]
[419695615,1775305843410,-502.81564678,0.00021999,2]
[419695616,1775305843420,-254.72149904,0.00021999,2]
[419695617,1775305843430,-189.00097824,0.00021999,2]
[419695618,1775305843440,-291.11028462,0.00021999,2]
[419695619,1775305843451,-273.61779547,0.00021999,2]
[419695620,1775305843461,-492.51203185,0.00021999,2]
[419695621,1775305843470,-875.57694551,0.00021999,2]
[419695623,1775305843480,-229.19931968,0.00021999,2]
[419695625,1775305843490,-261.94207964,0.00021999,2]
[419695627,1775305843499,-1368.08897736,0.00021999,2]
[419695628,1775305843509,-454.4049599,0.00021999,2]
[419695629,1775305843518,-339.86155906,0.00021999,2]
[419695630,1775305843528,-59041.61767838,0.00022,2]
[419695631,1775305843540,-21026.9999993,0.00022,2]
[419695632,1775305843552,-261.0,0.00022,2]
[419695658,1775305846124,-344.49500704,0.00022,2]
[419695659,1775305846136,-1326.16,0.00022,2]
[419695660,1775305846180,-5213.17288372,0.00022,2]
[419695661,1775305846191,-28250.00000001,0.00022,2]
[419695662,1775305846396,-586.84844,0.00022,2]
[419695663,1775305937979,-1239.70483367,0.00017001,2]
[419695664,1775306532120,838.98140086,0.00034775,120]
[419695669,1775306648814,1034.0,9.001e-05,2]
[419695670,1775306878047,1000.0,9.001e-05,2]
[419695671,1775307030537,10000.61,0.00034775,120]
[419695712,1775307038090,-669.08,0.00012637,2]
[419695794,1775307040969,-4330.92,0.00012637,2]
[419695796,1775307040979,-384.36870404,0.00012765,2]
[419695798,1775307040988,-601.0,0.00012765,2]
[419695800,1775307040997,-1000.0,0.00013699,2]
[419695801,1775307041006,-152.0,0.00017919,2]
[419695803,1775307041016,-160.0,0.00017919,2]
[419695805,1775307041026,-1000.0,0.00018445,2]
[419695807,1775307041035,-300.0,0.00018861,2]
[419695809,1775307041044,-158.0,0.00018862,2]
[419695810,1775307041054,-154.0,0.00018862,2]
[419695812,1775307041064,-154.0,0.00019862,2]
[419695814,1775307041074,-20012.53265295,0.0002,2]
[419695816,1775307041083,-1206.78639604,0.00020498,2]
[419695818,1775307041093,-558.84,0.00020598,2]
[419695819,1775307041102,-558.84,0.00020598,2]
[419695821,1775307041112,-965.08,0.00020598,2]
[419695823,1775307041122,-151.0,0.000206,3]
[419695825,1775307041132,-1000.0,0.000208,2]
[419695827,1775307041141,-1000.0,0.000208,3]
[419695829,1775307041151,-1000.0,0.000208,4]
[419695830,1775307041160,-1000.0,0.000208,5]
[419695832,1775307041169,-154.0,0.00020862,2]
[419695834,1775307041179,-10000.0,0.00021,2]
[419695836,1775307041188,-1000.0,0.000212,6]
[419695838,1775307041197,-1000.0,0.000212,7]
[419695839,1775307041206,-1206.78639598,0.00021476,2]
[419695841,1775307041215,-1000.0,0.000216,8]
[419695843,1775307041225,-1000.0,0.000218,10]
[419695845,1775307041235,-3939.45107154,0.00021849,2]
[419695847,1775307041244,-4374.77463288,0.00021849,2]
[419695849,1775307041253,-154.0,0.00021862,2]
[419695850,1775307041262,-283.03,0.0002189,3]
[419695852,1775307041272,-849.09,0.0002189,3]
[419695854,1775307041282,-500.0,0.00021899,2]
[419695856,1775307041291,-500.0,0.00021899,2]
[419695858,1775307041300,-633.01386159,0.00021899,2]
[419695859,1775307041309,-591.80817128,0.00021899,2]
[419695861,1775307041320,-500.0,0.00021899,2]
[419695863,1775307041330,-500.0,0.00021899,2]
[419695865,1775307041340,-500.0,0.00021899,2]
[419695867,1775307041349,-402.80506366,0.00021899,2]
[419695869,1775307041358,-72231.53076158,0.000219,2]
[419695989,1775307046209,-264.7,0.000219,2]
[419695990,1775307046476,-10326.66401471,0.000219,2]
[419695991,1775307046489,-4476.3278529,0.000219,2]
[419695992,1775307046529,-1144.02215386,0.000219,2]
[419695994,1775307050689,-401945.87007087,0.000219,2]
[419695995,1775307050742,-557.18407237,0.000219,2]
[419695996,1775307050754,-150851.27501775,0.000219,2]
[419695999,1775307429090,322.0,0.00032876,120]
[419696000,1775307448154,222.0,0.00032876,120]
[419696001,1775307454363,155.0,0.00032876,120]
[419696002,1775307460999,444.0,0.00032876,120]
[419696003,1775307470518,333.0,0.00032876,120]
[419696004,1775307487697,222.0,0.00032876,120]
[419696005,1775307698258,4861.15445746,0.0003,120]
[419696006,1775307698802,4861.15445746,0.000309,120]
[419696007,1775307699358,4861.15445746,0.000318,120]
[419696008,1775307699923,4861.15445746,0.000328,120]
[419696009,1775307699982,-1000.0,0.00013699,2]
[419696010,1775307704995,1000.0,0.00034748,120]
[419696011,1775307706274,1000.0,0.00034748,120]
[419696012,1775307707474,1000.0,0.00034748,120]
[419696013,1775307709037,1000.0,0.00034748,120]
[419696014,1775308016142,2916.69267447,0.0003,120]
[419696015,1775308016689,2916.69267447,0.000309,120]
[419696016,1775308017224,2916.69267447,0.000318,120]
[419696017,1775308017796,2916.69267447,0.000328,120]
[419696032,1775308232121,-958.67494373,0.00013699,2]
[419696033,1775308232230,-41.32505627,0.00013699,2]
[419696034,1775308232239,-615.0,0.00013699,2]
[419696035,1775308232249,-500.0,0.00019999,2]
[419696036,1775308232258,-166.66666668,0.0002097,2]
[419696037,1775308232267,-341.583,0.0002107,2]
[419696038,1775308232276,-187.60207825,0.0002107,2]
[419696039,1775308232285,-166.66666666,0.00021259,2]
[419696040,1775308232295,-909.6043697,0.00021448,2]
[419696041,1775308232304,-566.06,0.0002149,3]
[419696042,1775308232314,-300.0,0.00021499,2]
[419696043,1775308232323,-6180.81416901,0.000215,2]
[419696048,1775308238355,-780.0,0.00020874,2]
[419696049,1775308238367,-1190.04812739,0.00020874,2]
[419696050,1775308238376,-325.05195534,0.000215,2]
[419696238,1775308243570,-2678.77294122,0.00020874,2]
[419696239,1775308243580,-656.22705879,0.000215,2]
[419696240,1775308243591,-1413.02016238,0.000215,2]
[419696251,1775308246673,-1642.28954871,0.000215,2]
[419696252,1775308246729,-1449.1617561,0.000215,2]
[419696254,1775308335612,1750.01560468,0.0003,120]
[419696255,1775308336152,1750.01560468,0.000309,120]
[419696256,1775308336742,1750.01560468,0.000318,120]
[419696257,1775308337257,1750.01560468,0.000328,120]
[419696259,1775308338861,1050.00936281,0.0003,120]
[419696260,1775308339397,1050.00936281,0.000309,120]
[419696261,1775308339935,1050.00936281,0.000318,120]
[419696262,1775308412657,500.0,0.00034766,120]
[419696263,1775308412918,500.0,0.00034766,120]
[419696264,1775308413143,500.0,0.00034766,120]
[419696265,1775308413360,500.0,0.00034766,120]
[419696266,1775308413595,500.0,0.00034766,120]
[419696267,1775308413810,500.0,0.00034766,120]
[419696268,1775308414021,500.0,0.00034766,120]
[419696269,1775308414238,500.0,0.00034766,120]
[419696270,1775308414464,500.0,0.00034766,120]
[419696271,1775308414702,500.0,0.00034766,120]
[419696272,1775308414934,500.0,0.00034766,120]
[419696273,1775308415157,500.0,0.00034766,120]
[419696274,1775308415459,500.0,0.00034766,120]
[419696275,1775308415587,500.0,0.00034766,120]
[419696276,1775308415802,500.0,0.00034766,120]
[419696277,1775308416020,500.0,0.00034766,120]
[419696278,1775308416244,500.0,0.00034766,120]
[419696279,1775308416468,500.0,0.00034766,120]
[419696280,1775308416757,500.0,0.00034766,120]
[419696281,1775308417502,194.3833672,0.00034766,120]
[419696283,1775308501649,500.0,0.00034766,120]
[419696284,1775308501871,500.0,0.00034766,120]
[419696285,1775308502196,500.0,0.00034766,120]
[419696286,1775308502411,500.0,0.00034766,120]
[419696287,1775308502628,500.0,0.00034766,120]
[419696288,1775308502868,500.0,0.00034766,120]
[419696289,1775308503094,500.0,0.00034766,120]
[419696290,1775308503306,500.0,0.00034766,120]
[419696291,1775308503560,500.0,0.00034766,120]
[419696292,1775308503778,500.0,0.00034766,120]
[419696293,1775308504019,500.0,0.00034766,120]
[419696294,1775308504468,500.0,0.00034766,120]
[419696295,1775308504843,500.0,0.00034766,120]
[419696296,1775308505068,500.0,0.00034766,120]
[419696297,1775308505313,500.0,0.00034766,120]
[419696298,1775308505547,500.0,0.00034766,120]
[419696299,1775308505776,500.0,0.00034766,120]
[419696300,1775308506045,500.0910986,0.00034766,120]
[419696301,1775308629795,500.0,0.00021499,120]
[419696302,1775308630018,500.0,0.00021499,120]
[419696303,1775308630257,500.0,0.00021499,120]
[419696304,1775308630477,500.0,0.00021499,120]
[419696305,1775308630701,500.0,0.00021499,120]
[419696306,1775308630970,500.0,0.00021499,120]
[419696307,1775308631212,500.0,0.00021499,120]
[419696308,1775308631446,500.0,0.00021499,120]
[419696309,1775308631677,500.0,0.00021499,120]
[419696310,1775308631892,500.0,0.00021499,120]
[419696311,1775308632117,500.0,0.00021499,120]
[419696312,1775308632345,500.0,0.00021499,120]
[419696313,1775308632568,500.0,0.00021499,120]
[419696314,1775308632908,308.90979943,0.00021499,120]
[419696315,1775308637779,500.0,0.00034766,120]
[419696316,1775308650004,1470.01310794,0.0003,120]
[419696317,1775308650551,1470.01310794,0.000309,120]
[419696318,1775308651137,1470.01310794,0.000318,120]
[419696319,1775308651679,1470.01310794,0.000328,120]
[419696320,1775308675497,468.77241093,0.00021599,120]
[419696321,1775308779158,500.0,0.00020873,120]
[419696322,1775308779374,500.0,0.00021399,120]
[419696323,1775308953411,500.0,0.0003489,120]
[419696324,1775308964796,294.00262158,0.0003,120]
[419696325,1775308965763,294.00262158,0.000309,120]
[419696326,1775308966312,294.00262158,0.000318,120]
[419696327,1775308966861,294.00262158,0.000328,120]
[419696329,1775309079837,500.120028,0.0003489,120]
[419696331,1775309134559,500.0,0.0003489,120]
[419696332,1775309134780,500.0,0.0003489,120]
[419696333,1775309134911,2401.89,0.00026405,120]
[419696334,1775309134997,500.0,0.0003489,120]
[419696335,1775309135248,500.0,0.0003489,120]
[419696336,1775309135422,1029.38,0.00027322,120]
[419696337,1775309135807,195.80147812,0.0003489,120]
[419696338,1775309138900,500.0,0.00020873,120]
[419696339,1775309139119,500.0,0.00021399,120]
[419696340,1775309253562,500.0,0.00034906,120]
[419696341,1775309280424,294.0026216,0.0003,120]
[419696381,1775309432339,-440.41335325,0.00013561,2]
[419696388,1775309432394,-759.58664675,0.00013561,2]
[419696390,1775309432404,-252.68775466,0.00013562,2]
[419696392,1775309432415,-1004.47234941,0.00013562,2]
[419696394,1775309432425,-2994.07694886,0.00013562,2]
[419696398,1775309432450,-748.76294707,0.00013562,2]
[419696400,1775309432460,-613.0,0.00013562,2]
[419696402,1775309432469,-1000.0,0.00013699,2]
[419696404,1775309432478,-300.0,0.00013831,2]
[419696406,1775309432487,-300.0,0.00013832,2]
[419696408,1775309432496,-300.0,0.00013832,2]
[419696410,1775309432506,-300.0,0.00013832,2]
[419696412,1775309432516,-300.0,0.00013832,2]
[419696414,1775309432525,-300.0,0.00013832,2]
[419696416,1775309432534,-300.0,0.00013832,2]
[419696418,1775309432543,-300.0,0.00013832,2]
[419696420,1775309432552,-300.0,0.00013832,2]
[419696423,1775309432561,-300.0,0.00013832,2]
[419696426,1775309432570,-300.0,0.00013832,2]
[419696429,1775309432580,-300.0,0.00013832,2]
[419696432,1775309432589,-300.0,0.00013832,2]
[419696435,1775309432598,-300.0,0.00013832,2]
[419696438,1775309432608,-300.0,0.00013832,2]
[419696441,1775309432617,-300.0,0.00013832,2]
[419696444,1775309432626,-600.0,0.00014108,2]
[419696447,1775309432635,-480.0,0.00014917,2]
[419696448,1775309432644,-720.0,0.00015518,2]
[419696450,1775309432653,-714.02606886,0.00016397,2]
[419696452,1775309432665,-285.97393114,0.00016397,2]
[419696454,1775309432675,-864.0,0.0001707,2]
[419696456,1775309432684,-500.0,0.000178,2]
[419696458,1775309432694,-444.98853007,0.000178,2]
[419696460,1775309432706,-56.27128464,0.000178,2]
[419696462,1775309432715,-409.28449943,0.00017897,2]
[419696464,1775309432725,-588.7803095,0.00017897,2]
[419696466,1775309432734,-250.97667991,0.00018009,2]
[419696468,1775309432743,-158.13118099,0.00018348,2]
[419696470,1775309432753,-1000.0,0.00018777,2]
[419696472,1775309432762,-559.0584784,0.00018835,2]
[419696474,1775309432771,-169.08483489,0.00018835,2]
[419696476,1775309432783,-500.0,0.00018835,2]
[419696478,1775309432792,-160.638094,0.00018847,2]
[419696480,1775309432803,-500.0,0.00018847,2]
[419696482,1775309432814,-500.0,0.00018847,2]
[419696485,1775309432824,-500.0,0.00018847,2]
[419696486,1775309432833,-500.0,0.00018847,2]
[419696488,1775309432842,-500.0,0.00018847,2]
[419696490,1775309432852,-500.0,0.00018847,2]
[419696492,1775309432862,-166.62939898,0.00018847,2]
[419696494,1775309432871,-500.0,0.00018847,2]
[419696496,1775309432880,-500.0,0.00018847,2]
[419696498,1775309432889,-500.0,0.00018847,2]
[419696500,1775309432899,-530.4196158,0.00018847,2]
[419696502,1775309432908,-530.25771737,0.00018847,2]
[419696504,1775309432918,-500.0,0.00018847,2]
[419696506,1775309432928,-500.0,0.00018883,2]
[419696508,1775309432937,-500.0,0.00018883,2]
[419696510,1775309432946,-500.0,0.000189,2]
[419696512,1775309432956,-500.51583839,0.000189,2]
[419696514,1775309432966,-543.27181438,0.000189,2]
[419696516,1775309432975,-500.0,0.000189,2]
[419696518,1775309432984,-500.0,0.000189,2]
[419696520,1775309432994,-500.0,0.000189,2]
[419696522,1775309433002,-163.4128881,0.000189,2]
[419696524,1775309433012,-536.20727673,0.000189,2]
[419696526,1775309433021,-500.6964095,0.000189,2]
[419696527,1775309433030,-5000.0,0.00018905,2]
[419696529,1775309433040,-3780.50762931,0.00018905,2]
[419696532,1775309433051,-466.64616542,0.00018905,2]